fUSD/lending_fUSD_20260505
["ID","MTS","AMOUNT","RATE_DAILY","PERIOD"]
[421618221,1777975843000,-300.0,0.00035,2]
[421618232,1777975843000,-2350.96003256,0.00036158,2]
[421618237,1777975843000,-185.0,0.00036267,30]
[421618239,1777975843000,-3258.06084145,0.00036363,2]
[421618236,1777975843000,-180.57,0.00036184,120]
[421618215,1777975843000,-150.0,0.00034595,7]
[421618269,1777975843000,-222.41966423,0.00037653,3]
[421618339,1777975843000,-200.0,0.00038348,30]
[421618274,1777975843000,-270.85,0.00037746,2]
[421618310,1777975843000,-500.0,0.00038074,2]
[421618314,1777975843000,-500.0,0.00038074,2]
[421618311,1777975843000,-150.0,0.00038074,2]
[421618312,1777975843000,-500.0,0.00038074,2]
[421618309,1777975843000,-500.0,0.00038074,2]
[421618322,1777975843000,-150.0,0.00038074,2]
[421618327,1777975843000,-150.5,0.00038281,2]
[421618326,1777975843000,-300.0,0.00038262,2]
[421618324,1777975843000,-332.0,0.00038084,2]
[421618325,1777975843000,-300.0,0.00038262,2]
[421618317,1777975843000,-500.0,0.00038074,2]
[421618328,1777975843000,-152.0,0.00038291,7]
[421618330,1777975843000,-500.0,0.00038348,2]
[421618323,1777975843000,-224.74966561,0.00038074,2]
[421618333,1777975843000,-500.0,0.00038348,2]
[421618334,1777975843000,-500.0,0.00038348,2]
[421618332,1777975843000,-500.0,0.00038348,2]
[421618331,1777975843000,-500.0,0.00038348,2]
[421618336,1777975843000,-500.0,0.00038348,2]
[421618337,1777975843000,-500.0,0.00038348,2]
[421618335,1777975843000,-189.9926087,0.00038348,2]
[421618265,1777975843000,-331.0,0.000372,2]
[421618329,1777975843000,-152.0,0.00038291,7]
[421618313,1777975843000,-150.0,0.00038074,2]
[421618338,1777975843000,-379.10052604,0.00038348,2]
[421618320,1777975843000,-150.0,0.00038074,2]
[421618321,1777975843000,-150.0,0.00038074,2]
[421618270,1777975843000,-21545.08630287,0.0003769,2]
[421618282,1777975843000,-3258.06084145,0.00037864,2]
[421618277,1777975843000,-150.0,0.00037773,2]
[421618280,1777975843000,-1221.0,0.00037773,2]
[421618284,1777975843000,-2350.96003256,0.00037877,2]
[421618292,1777975843000,-300.0,0.00038,15]
[421618293,1777975843000,-180.93644665,0.00038,30]
[421618300,1777975843000,-2000.0,0.0003803,97]
[421618298,1777975843000,-2000.0,0.0003803,97]
[421618296,1777975843000,-2000.0,0.0003803,97]
[421618276,1777975843000,-1278.647,0.00037773,2]
[421618286,1777975843000,-6550.7690195,0.00037907,2]
[421618302,1777975843000,-2000.0,0.0003803,97]
[421618290,1777975843000,-600.23307053,0.00038,5]
[421618304,1777975843000,-2000.0,0.0003803,97]
[421618305,1777975843000,-2000.0,0.0003803,97]
[421618306,1777975843000,-175.84991684,0.00038074,2]
[421618308,1777975843000,-500.0,0.00038074,2]
[421618315,1777975843000,-163.83485364,0.00038074,2]
[421618316,1777975843000,-500.0,0.00038074,2]
[421618319,1777975843000,-150.0,0.00038074,2]
[421618307,1777975843000,-500.0,0.00038074,2]
[421618288,1777975843000,-3248.1974449,0.00037913,2]
[421618353,1777975844000,-298.665676,0.00038359,30]
[421618354,1777975844000,-151.0,0.00038359,30]
[421618356,1777975844000,-3915.2743,0.0003836,2]
[421618355,1777975844000,-151.0,0.00038359,30]
[421618359,1777975844000,-156.15270631,0.00038394,120]
[421618349,1777975844000,-151.0,0.00038359,7]
[421618352,1777975844000,-151.0,0.00038359,30]
[421618351,1777975844000,-151.0,0.00038359,7]
[421618341,1777975844000,-285.024589,0.00038359,30]
[421618348,1777975844000,-1588.866989,0.00038359,30]
[421618343,1777975844000,-285.024589,0.00038359,30]
[421618342,1777975844000,-1588.866989,0.00038359,30]
[421618340,1777975844000,-98943.1578,0.00038359,2]
[421618344,1777975844000,-1588.866989,0.00038359,30]
[421618346,1777975844000,-1588.866989,0.00038359,30]
[421618345,1777975844000,-285.024589,0.00038359,30]
[421618347,1777975844000,-285.024589,0.00038359,30]
[421618360,1777975844000,-156.15270631,0.00038394,120]
[421618350,1777975844000,-151.0,0.00038359,7]
[421618357,1777975844000,-475.04,0.00038366,2]
[421618366,1777975844000,-1663.03959526,0.00038412,7]
[421618362,1777975844000,-1438.09495884,0.00038412,7]
[421618380,1777975844000,-944.0,0.0003845,5]
[421618379,1777975844000,-190.83712597,0.00038438,7]
[421618381,1777975844000,-106419.50311732,0.0003845,2]
[421618378,1777975844000,-150.0,0.00038438,7]
[421618377,1777975844000,-272.93856471,0.00038438,7]
[421618376,1777975844000,-150.0,0.00038438,7]
[421618358,1777975844000,-798.374,0.00038383,51]
[421618375,1777975844000,-2000.0,0.00038415,101]
[421618369,1777975844000,-1854.55133189,0.00038412,7]
[421618374,1777975844000,-2000.0,0.00038415,101]
[421618371,1777975844000,-1994.32701123,0.00038412,7]
[421618370,1777975844000,-1923.16973117,0.00038412,7]
[421618363,1777975844000,-1491.30447232,0.00038412,7]
[421618373,1777975844000,-2000.0,0.00038415,101]
[421618364,1777975844000,-1546.48273779,0.00038412,7]
[421618372,1777975844000,-2000.0,0.00038415,101]
[421618361,1777975844000,-1386.78395259,0.00038412,7]
[421618365,1777975844000,-1603.70259909,0.00038412,7]
[421618367,1777975844000,-1724.57206028,0.00038412,7]
[421618368,1777975844000,-1788.38122651,0.00038412,7]
[421618383,1777975846000,-410.50177139,0.0003845,2]
[421618385,1777975846000,-200.0,0.0003845,2]
[421618386,1777975846000,-64.49822861,0.0003845,7]
[421618384,1777975846000,-200.0,0.0003845,2]
[421618391,1777975846000,-300.0,0.00038459,10]
[421618387,1777975846000,-89.97631615,0.0003845,7]
[421618390,1777975846000,-155.0,0.00038458,2]
[421618397,1777975846000,-5671.4235031,0.0003846,48]
[421618388,1777975846000,-200.0,0.0003845,2]
[421618394,1777975846000,-320.25929321,0.00038459,7]
[421618398,1777975846000,-274958.87133077,0.0003846,2]
[421618392,1777975846000,-300.0,0.00038459,10]
[421618393,1777975846000,-773.0,0.00038459,2]
[421618395,1777975846000,-501.58913703,0.00038459,7]
[421618396,1777975846000,-9861.82753805,0.0003846,48]
[421618389,1777975846000,-447.74995239,0.0003845,2]
[421618574,1777976162000,244.07,0.00024,30]
[421618578,1777976753000,-4110.25355747,0.00017,2]
[421618580,1777976853000,-1619.94644253,0.00017,2]
[421618581,1777976853000,-207.5661,0.00017,2]
[421618582,1777976853000,-165.16,0.0001774,2]
[421618583,1777976853000,-605.015601,0.000187,2]
[421618585,1777976853000,-166.0,0.000288,2]
[421618584,1777976853000,-215.68601301,0.00028718,14]
[421618587,1777976853000,-171.89533766,0.00029739,14]
[421618588,1777976853000,-158.0,0.00031265,30]
[421618586,1777976853000,-193.79067533,0.00029156,14]
[421618589,1777976853000,-223.79,0.000317,2]
[421618591,1777976853000,-191.0,0.00031959,3]
[421618592,1777976853000,-400.0,0.00031959,2]
[421618593,1777976853000,-500.0,0.0003196,7]
[421618597,1777976853000,-192.322387,0.00033264,60]
[421618595,1777976853000,-158.0,0.00032265,30]
[421618594,1777976853000,-500.0,0.0003196,7]
[421618596,1777976853000,-5000.0,0.00033263,60]
[421618590,1777976853000,-228.82,0.00031802,2]
[421618613,1777977031000,-4024.24,0.00033548,30]
[421618612,1777977031000,-166.66,0.00033548,30]
[421618611,1777977031000,-408.0,0.00033296,2]
[421618610,1777977031000,-2790.19,0.00033294,60]
[421618606,1777977031000,-162.51838138,0.00032,2]
[421618604,1777977031000,-173.75327781,0.000317,2]
[421618605,1777977031000,-316.70758213,0.000317,2]
[421618609,1777977031000,-158.0,0.00033265,30]
[421618603,1777977031000,-142.95430432,0.000317,2]
[421618602,1777977031000,-316.70758216,0.000317,2]
[421618625,1777977031000,-158.0,0.00035265,30]
[421618608,1777977031000,-4807.677613,0.00033264,60]
[421618615,1777977031000,-413.0,0.0003387,2]
[421618607,1777977031000,-398.0,0.00032,2]
[421618618,1777977031000,-299.99,0.00034265,30]
[421618626,1777977031000,-166.66,0.00035314,30]
[421618627,1777977031000,-150.0,0.00035314,2]
[421618622,1777977031000,-1002.4750944,0.00035199,2]
[421618624,1777977031000,-250.0,0.000352,2]
[421618623,1777977031000,-2500.0,0.000352,120]
[421618628,1777977031000,-165.16,0.00035479,2]
[421618620,1777977031000,-166.66,0.00034431,30]
[421618617,1777977031000,-9112.75,0.00034265,2]
[421618619,1777977031000,-501.0,0.00034274,2]
[421618616,1777977031000,-158.0,0.00034265,30]
[421618629,1777977031000,-500.0,0.00035539,2]
[421618614,1777977031000,-9999.99,0.00033548,2]
[421618621,1777977031000,-166.54,0.00035055,120]
[421618678,1777977032000,-4401.74,0.00036927,2]
[421618673,1777977032000,-286.65485468,0.00036926,2]
[421618690,1777977032000,-150.0,0.00037192,7]
[421618686,1777977032000,-150.0,0.00037026,7]
[421618681,1777977032000,-500.0,0.0003699,2]
[421618684,1777977032000,-150.0,0.00037026,30]
[421618691,1777977032000,-150.0,0.0003723,7]
[421618693,1777977032000,-20514.1,0.00037299,2]
[421618702,1777977032000,-150.0,0.00037688,7]
[421618688,1777977032000,-166.66,0.00037079,30]
[421618695,1777977032000,-1852.42,0.00037423,2]
[421618698,1777977032000,-150.0,0.00037535,7]
[421618696,1777977032000,-1281.31,0.00037438,2]
[421618697,1777977032000,-200.0,0.00037443,2]
[421618692,1777977032000,-159.0,0.00037265,30]
[421618664,1777977032000,-150.0,0.00036696,7]
[421618694,1777977032000,-886.88,0.00037413,10]
[421618700,1777977032000,-150.0,0.00037688,7]
[421618701,1777977032000,-150.0,0.00037688,7]
[421618704,1777977032000,-485.728556,0.00037829,2]
[421618706,1777977032000,-150.0,0.0003784,7]
[421618703,1777977032000,-177.37,0.00037819,10]
[421618699,1777977032000,-2832.65,0.00037544,120]
[421618658,1777977032000,-150.0,0.0003662,7]
[421618643,1777977032000,-150.0,0.00035704,7]
[421618667,1777977032000,-150.0,0.00036696,7]
[421618705,1777977032000,-4352.57775086,0.00037829,2]
[421618632,1777977032000,-150.0,0.00035704,30]
[421618631,1777977032000,-172.51,0.00035585,2]
[421618630,1777977032000,-8849.27,0.00035539,2]
[421618635,1777977032000,-150.20530018,0.00035704,7]
[421618638,1777977032000,-150.0,0.00035704,7]
[421618637,1777977032000,-150.0,0.00035704,7]
[421618634,1777977032000,-247.56730628,0.00035704,7]
[421618633,1777977032000,-150.0,0.00035704,7]
[421618636,1777977032000,-150.0,0.00035704,7]
[421618670,1777977032000,-150.0,0.00036925,7]
[421618640,1777977032000,-150.0,0.00035704,7]
[421618645,1777977032000,-150.0,0.00036009,7]
[421618646,1777977032000,-166.66,0.00036197,30]
[421618641,1777977032000,-150.0,0.00035704,7]
[421618648,1777977032000,-158.0,0.00036265,30]
[421618647,1777977032000,-150.0,0.000362,7]
[421618644,1777977032000,-622.45,0.00035777,2]
[421618642,1777977032000,-150.0,0.00035704,7]
[421618649,1777977032000,-150.0,0.00036314,7]
[421618661,1777977032000,-19375.69,0.00036658,2]
[421618654,1777977032000,-198.55,0.00036519,2]
[421618639,1777977032000,-150.72884545,0.00035704,7]
[421618708,1777977032000,-6096.1148084,0.00037973,2]
[421618650,1777977032000,-335.68,0.0003635,30]
[421618709,1777977032000,-4304.42937654,0.00038,6]
[421618738,1777977032000,-300.0,0.0003833,10]
[421618740,1777977032000,-63364.26822466,0.00038331,2]
[421618739,1777977032000,-200.0,0.0003833,30]
[421618742,1777977032000,-67616.82282287,0.00038331,2]
[421618743,1777977032000,-26136.46786591,0.00038331,2]
[421618744,1777977032000,-1254.41808677,0.00038331,2]
[421618741,1777977032000,-114391.5869847,0.00038331,2]
[421618745,1777977032000,-1017.29465335,0.00038331,2]
[421618747,1777977032000,-501.55199785,0.00038331,2]
[421618746,1777977032000,-8119.79882738,0.00038331,2]
[421618749,1777977032000,-380.68182096,0.00038331,2]
[421618751,1777977032000,-604.22503791,0.00038331,2]
[421618748,1777977032000,-415.78432906,0.00038331,2]
[421618750,1777977032000,-2021.97763837,0.00038331,2]
[421618752,1777977032000,-1850.0,0.00038331,2]
[421618754,1777977032000,-41276.56074886,0.00038331,2]
[421618753,1777977032000,-674.06681493,0.00038331,2]
[421618755,1777977032000,-8408.46727034,0.00038331,2]
[421618757,1777977032000,-6127.228,0.00038331,2]
[421618756,1777977032000,-4556.57125749,0.00038331,2]
[421618758,1777977032000,-3725.08365359,0.00038331,2]
[421618759,1777977032000,-8065.69846738,0.00038331,2]
[421618707,1777977032000,-162.1350868,0.00037973,2]
[421618733,1777977032000,-300.0,0.00038259,2]
[421618734,1777977032000,-300.0,0.00038259,2]
[421618736,1777977032000,-1820.0,0.000383,120]
[421618718,1777977032000,-470.19200653,0.0003813,2]
[421618713,1777977032000,-2000.0,0.0003807,97]
[421618710,1777977032000,-4309.01726061,0.00038028,2]
[421618712,1777977032000,-2000.0,0.0003807,97]
[421618714,1777977032000,-2000.0,0.0003807,97]
[421618717,1777977032000,-28757.6812,0.00038129,2]
[421618716,1777977032000,-167.0,0.00038128,5]
[421618721,1777977032000,-200.0,0.00038152,10]
[421618715,1777977032000,-167.0,0.00038128,5]
[421618722,1777977032000,-150.0,0.00038184,7]
[421618723,1777977032000,-232.21197272,0.00038229,15]
[421618732,1777977032000,-4309.01726057,0.00038236,2]
[421618725,1777977032000,-560.01446641,0.00038229,15]
[421618724,1777977032000,-500.0,0.00038229,15]
[421618719,1777977032000,-1276.55875008,0.0003813,2]
[421618720,1777977032000,-150.0,0.00038145,7]
[421618727,1777977032000,-162.5483809,0.00038229,15]
[421618737,1777977032000,-470.19200651,0.00038327,2]
[421618726,1777977032000,-500.0,0.00038229,15]
[421618728,1777977032000,-341567.6478,0.0003823,2]
[421618730,1777977032000,-167.0,0.0003823,5]
[421618729,1777977032000,-4181.9016,0.0003823,2]
[421618731,1777977032000,-229.44801453,0.00038231,13]
[421618735,1777977032000,-150.5,0.00038281,2]
[421618711,1777977032000,-2000.0,0.0003807,97]
[421618760,1777977037000,-4144.1699421,0.00038331,2]
[421618761,1777977038000,-684.14999999,0.00038331,2]
[421618762,1777977038000,-11556.63275172,0.00038331,2]
[421618765,1777977038000,-1220.29526241,0.00038331,2]
[421618763,1777977038000,-288.18867524,0.00038331,2]
[421618764,1777977038000,-1478.63014659,0.00038331,2]
[421618871,1777977040000,-810.39154914,0.00038331,2]
[421618870,1777977040000,-777.57744923,0.00038331,2]
[421618869,1777977040000,-501.69944493,0.00038229,7]
[421618984,1777977046000,-151.0,0.00038331,7]
[421618992,1777977046000,-500.0,0.00038358,7]
[421619002,1777977046000,-315.54744385,0.00038373,5]
[421618991,1777977046000,-150.0,0.00038349,7]
[421619003,1777977046000,-266.14613373,0.00038373,5]
[421619004,1777977046000,-408.34820023,0.00038373,5]
[421619000,1777977046000,-501.45390726,0.00038373,5]
[421618993,1777977046000,-185.06959613,0.0003836,2]
[421618994,1777977046000,-506.58951316,0.00038373,5]
[421618996,1777977046000,-150.30382099,0.00038373,2]
[421619005,1777977046000,-166.7121702,0.00038373,5]
[421618995,1777977046000,-500.0,0.00038373,5]
[421618999,1777977046000,-500.0,0.00038373,2]
[421618998,1777977046000,-500.0,0.00038373,5]
[421619001,1777977046000,-500.0,0.00038373,5]
[421619006,1777977046000,-500.0,0.00038373,5]
[421619018,1777977046000,-151.0,0.00038457,14]
[421619016,1777977046000,-150.0,0.00038451,7]
[421619017,1777977046000,-500.0,0.00038457,14]
[421618997,1777977046000,-500.0,0.00038373,5]
[421618986,1777977046000,-151.0,0.00038331,7]
[421618988,1777977046000,-151.0,0.00038331,7]
[421618987,1777977046000,-161.308794,0.00038331,7]
[421618967,1777977046000,-974.9999998,0.00038331,2]
[421618968,1777977046000,-50342.3657214,0.00038331,2]
[421618976,1777977046000,-228.019671,0.00038331,7]
[421618971,1777977046000,-252.421356,0.00038331,7]
[421618969,1777977046000,-157.276906,0.00038331,7]
[421618974,1777977046000,-151.0,0.00038331,7]
[421618973,1777977046000,-252.421356,0.00038331,7]
[421618970,1777977046000,-252.421356,0.00038331,7]
[421618972,1777977046000,-252.421356,0.00038331,7]
[421618975,1777977046000,-151.0,0.00038331,7]
[421618977,1777977046000,-1271.093591,0.00038331,7]
[421618979,1777977046000,-1271.093591,0.00038331,7]
[421618989,1777977046000,-288.675705,0.00038331,7]
[421618990,1777977046000,-150.0,0.00038349,30]
[421618978,1777977046000,-228.019671,0.00038331,7]
[421618982,1777977046000,-228.019671,0.00038331,7]
[421618980,1777977046000,-228.019671,0.00038331,7]
[421618981,1777977046000,-1271.093591,0.00038331,7]
[421618983,1777977046000,-1271.093591,0.00038331,7]
[421618985,1777977046000,-151.0,0.00038331,7]
[421619007,1777977046000,-152.0,0.00038401,7]
[421619021,1777977046000,-1491.30447232,0.00038458,7]
[421619012,1777977046000,-26174.7194791,0.00038431,2]
[421619035,1777977046000,-2000.0,0.00038459,102]
[421619037,1777977046000,-500.0,0.00038459,7]
[421619041,1777977046000,-500.0,0.00038459,7]
[421619045,1777977046000,-500.0,0.00038459,7]
[421619043,1777977046000,-500.0,0.00038459,7]
[421619049,1777977046000,-500.0,0.00038459,7]
[421619047,1777977046000,-500.0,0.00038459,7]
[421619051,1777977046000,-500.0,0.00038459,7]
[421619062,1777977046000,-551.37201899,0.00038473,5]
[421619066,1777977046000,-400.0,0.0003849,20]
[421619064,1777977046000,-500.0,0.00038473,5]
[421619059,1777977046000,-500.32951752,0.00038473,5]
[421619057,1777977046000,-200.0,0.0003846,2]
[421619053,1777977046000,-557.46610262,0.00038459,7]
[421619055,1777977046000,-167.0,0.00038459,5]
[421619073,1777977046000,-8950.14997363,0.000385,2]
[421619008,1777977046000,-728.0,0.00038431,5]
[421619068,1777977046000,-103043.65271435,0.000385,2]
[421619076,1777977046000,-76382.6703714,0.000385,2]
[421619036,1777977046000,-500.0,0.00038459,7]
[421619032,1777977046000,-500.0,0.00038459,7]
[421619070,1777977046000,-564.67872648,0.000385,2]
[421619031,1777977046000,-500.0,0.00038459,7]
[421619009,1777977046000,-50092.288783,0.00038431,2]
[421619011,1777977046000,-23867.2064337,0.00038431,2]
[421619015,1777977046000,-4309.01726057,0.00038444,2]
[421619014,1777977046000,-2547.6953484,0.00038431,2]
[421619013,1777977046000,-1527.2817275,0.00038431,2]
[421619010,1777977046000,-608.5250077,0.00038431,2]
[421619019,1777977046000,-1386.78395259,0.00038458,7]
[421619030,1777977046000,-500.0,0.00038459,7]
[421619023,1777977046000,-1603.70259909,0.00038458,7]
[421619020,1777977046000,-1438.09495884,0.00038458,7]
[421619024,1777977046000,-1663.03959526,0.00038458,7]
[421619025,1777977046000,-1724.57206028,0.00038458,7]
[421619026,1777977046000,-1077.50466985,0.00038458,7]
[421619029,1777977046000,-500.0,0.00038459,7]
[421619028,1777977046000,-500.0,0.00038459,7]
[421619027,1777977046000,-638.699,0.00038459,51]
[421619033,1777977046000,-500.0,0.00038459,7]
[421619034,1777977046000,-2000.0,0.00038459,102]
[421619022,1777977046000,-1546.48273779,0.00038458,7]
[421619039,1777977046000,-500.0,0.00038459,7]
[421619206,1777977940000,-205.52259523,0.00018872,2]
[421619205,1777977940000,-727.92,0.00017974,2]
[421619204,1777977940000,-727.92,0.00017075,2]
[421619213,1777978029000,-522.39740477,0.00018872,2]
[421619214,1777978029000,-599.9208725,0.00019771,2]
[421619212,1777978029000,-278.97,0.00018856,2]
[421619215,1777978035000,-127.9991275,0.00019771,2]
[421619216,1777978035000,-181.0,0.0002,2]
[421619217,1777978035000,-83.32578042,0.0002067,2]
[421619225,1777978053000,-502.74268136,0.00022467,2]
[421619224,1777978053000,-181.0,0.00022,2]
[421619222,1777978053000,-505.0,0.00021,2]
[421619223,1777978053000,-727.92,0.00021568,2]
[421619221,1777978053000,-181.0,0.00021,2]
[421619220,1777978053000,-644.59421958,0.0002067,2]
[421619244,1777978145000,-187.0,0.00025,2]
[421619243,1777978145000,-250.0,0.00024714,2]
[421619245,1777978145000,-727.92,0.00025163,2]
[421619249,1777978145000,-420.0,0.0002678,2]
[421619251,1777978145000,-727.92,0.00026961,2]
[421619246,1777978145000,-150.51,0.00025465,2]
[421619242,1777978145000,-2500.0,0.00024714,2]
[421619248,1777978145000,-727.92,0.00026062,2]
[421619247,1777978145000,-1680.0,0.0002547,2]
[421619241,1777978145000,-300.0,0.00024713,2]
[421619236,1777978145000,-727.92,0.00023366,2]
[421619238,1777978145000,-181.0,0.00024,2]
[421619239,1777978145000,-300.0,0.0002426,2]
[421619237,1777978145000,-162.51838138,0.00023785,2]
[421619235,1777978145000,-1200.0,0.00023364,2]
[421619233,1777978145000,-181.0,0.00023,2]
[421619232,1777978145000,-274.98,0.00022562,2]
[421619234,1777978145000,-150.51,0.0002315,2]
[421619231,1777978145000,-2578.46860699,0.00022515,2]
[421619230,1777978145000,-225.17731864,0.00022467,2]
[421619240,1777978145000,-727.92,0.00024264,2]
[421619250,1777978145000,-346.72234768,0.00026861,2]
[421619257,1777978145000,-902.0,0.00027859,2]
[421619252,1777978145000,-169.29,0.00027547,30]
[421619253,1777978145000,-12361.09080108,0.00027666,2]
[421619275,1777978145000,-174.3,0.00029666,7]
[421619274,1777978145000,-174.3,0.00029666,2]
[421619272,1777978145000,-3459.06,0.00029613,2]
[421619271,1777978145000,-174.68,0.00029395,7]
[421619270,1777978145000,-174.67,0.00029395,2]
[421619269,1777978145000,-198.51,0.00029385,2]
[421619268,1777978145000,-3440.95,0.00029128,2]
[421619267,1777978145000,-587.0,0.0002902,2]
[421619266,1777978145000,-579.75,0.00028916,2]
[421619273,1777978145000,-727.92,0.00029657,2]
[421619264,1777978145000,-727.92,0.00028758,2]
[421619263,1777978145000,-161.84,0.00028511,2]
[421619262,1777978145000,-5000.0,0.00028511,2]
[421619260,1777978145000,-4195.83,0.00028019,2]
[421619261,1777978145000,-200.0,0.0002821,2]
[421619259,1777978145000,-4795.24,0.00027972,2]
[421619254,1777978145000,-300.0,0.00027766,2]
[421619258,1777978145000,-727.92,0.00027859,2]
[421619256,1777978145000,-150.51,0.0002778,2]
[421619255,1777978145000,-2351.0,0.00027767,2]
[421619265,1777978145000,-166.97,0.00028863,2]
[421619277,1777978146000,-10681.35013516,0.00029815,2]
[421619276,1777978146000,-150.99,0.00029815,2]
[421619280,1777978155000,-150.0,0.00024658,2]
[421619281,1777978155000,-168.2492093,0.00024658,2]
[421619279,1777978155000,-506.0,0.00021,2]
[421619285,1777978156000,-99.263041,0.00027185,2]
[421619283,1777978156000,-150.0,0.0002589,2]
[421619284,1777978156000,-178.64,0.00026338,7]
[421619282,1777978156000,-10.3907907,0.00024658,2]
[421619290,1777978163000,-110.16102963,0.00028544,2]
[421619289,1777978163000,-178.66,0.00028018,30]
[421619288,1777978163000,-50.736959,0.00027185,2]
[421619300,1777978231000,-193.39,0.00024658,2]
[421619303,1777978231000,-219.72282473,0.00029814,2]
[421619304,1777978231000,-80.27717527,0.00029814,2]
[421619302,1777978231000,-39.83897037,0.00028544,2]
[421619305,1777978231000,-150.0,0.00029971,2]
[421619306,1777978231000,-420.0,0.00029994,2]
[421619324,1777978232000,-150.0,0.00031488,7]
[421619325,1777978232000,-336.80040914,0.000317,2]
[421619328,1777978232000,-336.80040913,0.000317,2]
[421619326,1777978232000,-336.80040913,0.000317,2]
[421619334,1777978232000,-727.92,0.00032353,2]
[421619333,1777978232000,-198.51,0.00032323,2]
[421619337,1777978232000,-151.07323797,0.00032636,30]
[421619319,1777978232000,-150.0,0.00031488,7]
[421619332,1777978232000,-2000.0,0.00032277,2]
[421619331,1777978232000,-181.0,0.00032265,30]
[421619336,1777978232000,-150.51,0.0003241,2]
[421619335,1777978232000,-536.0,0.00032402,3]
[421619338,1777978232000,-316.8,0.0003264,120]
[421619329,1777978232000,-979.26657041,0.00032,120]
[421619330,1777978232000,-150.0,0.00032071,7]
[421619323,1777978232000,-150.0,0.00031488,7]
[421619322,1777978232000,-150.0,0.00031488,7]
[421619320,1777978232000,-150.0,0.00031488,7]
[421619318,1777978232000,-150.0,0.0003147,2]
[421619317,1777978232000,-727.92,0.00031454,2]
[421619315,1777978232000,-3063.8,0.00031448,5]
[421619316,1777978232000,-150.99,0.00031448,2]
[421619314,1777978232000,-9999.99,0.00031448,2]
[421619312,1777978232000,-3689.45,0.00031265,2]
[421619313,1777978232000,-4546.64,0.00031448,2]
[421619311,1777978232000,-2534.95,0.00031265,2]
[421619310,1777978232000,-181.0,0.00031265,30]
[421619309,1777978232000,-727.92,0.00030555,2]
[421619308,1777978232000,-150.51,0.00030095,2]
[421619307,1777978232000,-2000.0,0.0003,3]
[421619321,1777978232000,-150.0,0.00031488,7]
[421619346,1777978232000,-5000.0,0.0003325,60]
[421619341,1777978232000,-979.26657041,0.00033,120]
[421619339,1777978232000,-150.0,0.00032654,7]
[421619359,1777978232000,-727.92,0.0003415,2]
[421619360,1777978232000,-181.0,0.00034265,30]
[421619365,1777978232000,-157.69,0.00034326,120]
[421619363,1777978232000,-590.28454306,0.000343,2]
[421619361,1777978232000,-13393.78,0.00034284,120]
[421619364,1777978232000,-150.0,0.000343,2]
[421619362,1777978232000,-3709.51012517,0.00034298,2]
[421619368,1777978232000,-101849.32409908,0.0003435,2]
[421619372,1777978232000,-437.37640512,0.0003435,2]
[421619370,1777978232000,-651.0,0.0003435,2]
[421619373,1777978232000,-508.0,0.0003435,2]
[421619371,1777978232000,-388.27807364,0.0003435,2]
[421619369,1777978232000,-58956.56967929,0.0003435,2]
[421619340,1777978232000,-5000.0,0.00032999,60]
[421619367,1777978232000,-25122.28909342,0.0003435,2]
[421619358,1777978232000,-316.8,0.00034133,120]
[421619366,1777978232000,-200.0,0.00034327,2]
[421619355,1777978232000,-16738.69,0.00033898,2]
[421619357,1777978232000,-895.0,0.00034,2]
[421619342,1777978232000,-5000.0,0.00033236,60]
[421619343,1777978232000,-150.0,0.00033237,7]